Cogmind - Beta 10.1 @@@ ROGUE MODE // 2020.10.08 @ 17:21:30 Player: Shrewd Result: Destroyed by as-19778 with Assembled Blade Performance ------------- Evolutions (0) 0 Regions Visited (2) 400 Robots Destroyed (12) 60 Value Destroyed (294) 294 Prototype IDs (0) 0 Alien Tech Used (0) 0 Bonus (0) 0 TOTAL SCORE: 754 Bonus ------- None Cogmind --------- Core Integrity 0/250 Matter 260/300 Energy 100/100 System Corruption 0% Temperature Cool (0) Movement Walking (150) Ox1 Location -10/Mines Parts ------- > --- POWER (1) -------- (None) > --- PROPULSION (2) --- Aluminum Leg > --- UTILITY (2) ------ Heat Sink Large Storage Unit > --- WEAPON (2) ------- (None) > --- INVENTORY (10) --- Aluminum Leg Large Storage Unit Peak State ------------ > --- POWER ------------ Ion Engine > --- PROPULSION ------- Aluminum Leg Aluminum Leg > --- UTILITY ---------- Improved Heat Sink Large Storage Unit > --- WEAPON ----------- Beam Cannon Beam Cannon > --- INVENTORY -------- Ion Engine Aluminum Leg Aluminum Leg Aluminum Leg Heat Sink Large Storage Unit Beam Cannon Beam Cannon Beam Cannon Grenade Launcher [Rating: 10] Favorites ----------- Power Ion Engine Engine Ion Engine Propulsion Aluminum Leg Leg Aluminum Leg Utility Large Storage Unit Device Heat Sink Storage Large Storage Unit Weapon Beam Cannon Energy Gun EM Pulse Gun Energy Cannon Beam Cannon Ballistic Gun Light Assault Rifle Launcher Grenade Launcher Build | -11 -10 -10 ------- Run | Scr Mat Min Slots Evolved . | . . . Power . | . . . Propulsion . | . . . Utility . | . . . Weapon . | . . . Parts Attached 23 | 1 10 12 Power 2 | . 1 1 Engine 2 | . 1 1 Core . | . . . Reactor . | . . . Propulsion 5 | . 1 4 Treads . | . . . Leg 5 | . 1 4 Wheel . | . . . Hover . | . . . Flight . | . . . Utility 4 | . 2 2 Device 3 | . 1 2 Storage 1 | . 1 . Processor . | . . . Hackware . | . . . Protection . | . . . Artifact . | . . . Weapon 12 | 1 6 5 Energy Gun . | . . . Energy Cannon 6 | . 2 4 Ballistic Gun 3 | 1 2 . Ballistic Cannon . | . . . Launcher 3 | . 2 1 Special Weapon . | . . . Impact Weapon . | . . . Slashing Weapon . | . . . Piercing Weapon . | . . . Special Melee Weapon . | . . . Unidentified Prototypes . | . . . Parts Lost 12 | . . 12 Power 2 | . . 2 Propulsion 3 | . . 3 Utility 1 | . . 1 Weapon 6 | . . 6 Highest Loss Streak 7 | . . 7 Average Slot Usage (%) 94 | . 95 91 Engine 13 | . 14 11 Leg 27 | . 28 25 Device 11 | . 10 12 Storage 14 | . 14 14 Energy Gun 4 | . 7 . Energy Cannon 16 | . 13 25 Ballistic Gun 4 | . 6 . Naked Turns . | . . . Heaviest Build 28 | 10 28 28 Greatest Support 20 | 20 20 20 Greatest Overweight (x) 2 | . 1 2 Average Overweight (x) . | . . 1 Largest Inventory Capacity 10 | 6 10 10 Average Capacity 9 | 6 8 10 Most Carried 10 | 6 10 10 Average Carried 8 | 6 8 7 Final Capacity 10 | 6 10 10 Final Carried 10 | 6 10 2 Class Distribution -------------------- 100% | Mutant Dominant Class ---------------- Mutant | -10/Materials Mutant | -10/Mines Resources | -11 -10 -10 ----------- Run | Scr Mat Min Matter Collected 402 | 210 142 50 Remotely . | . . . Salvage Created 359 | . 257 102 Parts 21 | . 16 5 Haulers Intercepted 1 | . 1 . Recyclers Shooed . | . . . Parts Field Recycled . | . . . Retrieved Matter . | . . . Parts Self-Destructed . | . . . Prevented . | . . . Kills | -11 -10 -10 ------- Run | Scr Mat Min Combat Hostiles Destroyed 10 | . 6 4 Guns 1 | . 1 . Cannons 4 | . . 4 AOE 5 | . 5 . Classes Destroyed 6 | . 4 2 Hauler 1 | . 1 . Recycler 1 | . 1 . Swarmer 3 | . 3 . Grunt 5 | . 3 2 Demolisher 1 | . . 1 Assembled 1 | . . 1 Best Kill Streak 4 | . 4 2 Combat Bots Only 3 | . 3 2 Max Kills in Single Turn 3 | . 3 1 Gunslinging . | . . . Exploded 3 | . 3 . Melee . | . . . Uniques/NPCs Destroyed . | . . . Combat | -11 -10 -10 -------- Run | Scr Mat Min Damage Taken 1298 | . 189 1109 Core 280 | . 17 263 Absorbed by Shields . | . . . Core Remaining (%) 100 | 100 . . Volleys Fired 31 | . 15 16 Largest 2 | . 2 2 Hottest 120 | . 60 120 Shots Fired 56 | . 27 29 Gun 24 | . 24 . Cannon 28 | . . 28 Launcher 4 | . 3 1 Special . | . . . Kinetic 12 | . 12 . Thermal 28 | . . 28 Explosive 4 | . 3 1 Electromagnetic 12 | . 12 . Robot Hit Streak 9 | . 7 9 Robot Miss Streak 2 | . 2 2 Penetration Max . | . . . Secondary Targets . | . . . Shots Hit Robots 33 | . 14 19 Core Hits 23 | . 12 11 Critical Hits . | . . . Critical Kills . | . . . Critical Parts Destroyed . | . . . Melee Attacks . | . . . Impact . | . . . Slashing . | . . . Piercing . | . . . Sneak Attacks . | . . . Combat Hostiles . | . . . Follow-up Attacks . | . . . Damage Inflicted 854 | . 492 362 Guns 138 | . 138 . Cannons 349 | . . 349 Explosions 367 | . 354 13 Melee . | . . . Ramming . | . . . Kinetic 31 | . 31 . Thermal 427 | . 78 349 Explosive 289 | . 276 13 Electromagnetic 107 | . 107 . Impact . | . . . Slashing . | . . . Piercing . | . . . Highest Corruption . | . . . Average Corruption . | . . . Corruption Purged . | . . . Overload Shots . | . . . Overflow Damage 3 | . . 3 Projectiles 3 | . . 3 Explosions . | . . . Melee . | . . . Knockbacks . | . . . Impact . | . . . Kinetic . | . . . Secondary . | . . . Self-Inflicted Damage 31 | . . 31 Shots 1 | . . 1 Rammed . | . . . Targets Rammed . | . . . Kicked . | . . . Crushed . | . . . Highest Temperature 195 | . 64 195 Average Temperature 61 | . 24 73 Received Heat Transfer 111 | . 66 45 Siege Activations . | . . . Robots Corrupted . | . . . Combat Hostiles . | . . . Parts Fried . | . . . Impact Corruptions . | . . . Robots Melted . | . . . Combat Hostiles . | . . . Parts Melted 1 | . . 1 Heat Transferred 840 | . 100 740 Parts Sabotaged . | . . . Parts Stolen . | . . . Parts Stripped . | . . . Power Chain Reactions 1 | . 1 . Missiles Intercepted . | . . . Alert | -11 -10 -10 ------- Run | Scr Mat Min Peak Influence 232 | . 232 94 Initial 24 | . . 24 Average 86 | . 102 53 Maximum Alert Level 1 | . 1 . Low Security (%) 86 | 100 81 100 Level 1 13 | . 18 . Level 2 . | . . . Level 3 . | . . . Level 4 . | . . . Level 5 . | . . . High Security . | . . . Max Security . | . . . Squads Dispatched 1 | . 1 . Investigation 1 | . 1 . Extermination . | . . . Reinforcement . | . . . Assault . | . . . Garrison . | . . . Intercept . | . . . Construction Impeded . | . . . Haulers Reinforced . | . . . Stealth | -11 -10 -10 --------- Run | Scr Mat Min Distress Signals . | . . . Communications Jammed . | . . . Distress Signals . | . . . Times Spotted 20 | . 13 7 Peak Tracking Total 5 | . 5 3 Tactical Retreats . | . . . Traps | -11 -10 -10 ------- Run | Scr Mat Min Traps Triggered . | . . . Indirectly . | . . . Trap Hack Attempts . | . . . Triggered . | . . . Disarmed . | . . . Reprogrammed . | . . . Reused . | . . . Traps Extracted . | . . . Installed . | . . . Triggered . | . . . Machines | -11 -10 -10 ---------- Run | Scr Mat Min Machines Disabled 2 | . 2 . Max in Single Turn 1 | . 1 . Machines Sabotaged . | . . . Garrisons Compromised . | . . . Overloaded Fab Kills . | . . . Fab Network Shutdowns . | . . . Hacking | -11 -10 -10 --------- Run | Scr Mat Min Machines Accessed 4 | . 4 . Terminals 4 | . 4 . Fabricators . | . . . Repair Stations . | . . . Recycling Units . | . . . Scanalyzers . | . . . Garrison Access . | . . . Total Hacks 10 | . 10 . Successful 4 | . 4 . Failed 6 | . 6 . Catastrophic 1 | . 1 . Database Lockouts . | . . . Manual . | . . . Terminals 10 | . 10 . Fabricators . | . . . Repair Stations . | . . . Recycling Units . | . . . Scanalyzers . | . . . Garrison Access . | . . . Terminal Hacks 4 | . 4 . Locate Traps 2 | . 2 . Hauler Manifests 1 | . 1 . Zone Layout 1 | . 1 . Fabricator Hacks . | . . . Repair Station Hacks . | . . . Recycling Unit Hacks . | . . . Scanalyzer . | . . . Garrison Access Hacks . | . . . Unauthorized Hacks . | . . . Terminals . | . . . Fabricators . | . . . Repair Stations . | . . . Recycling Units . | . . . Scanalyzers . | . . . Garrison Access . | . . . Data Cores Recovered . | . . . Used . | . . . Hacking Detections 4 | . 4 . Full Trace Events 1 | . 1 . Feedback Events . | . . . Feedback Blocked . | . . . Robot Schematics Acquired . | . . . Robots Built . | . . . Matter . | . . . Time . | . . . Total Robot Build Rating . | . . . Part Schematics Acquired . | . . . Parts Built . | . . . Matter . | . . . Time . | . . . Total Part Build Rating . | . . . Parts Repaired . | . . . Time . | . . . Parts Recycled . | . . . Recycled Matter . | . . . Retrieved Matter . | . . . Retrieved Components . | . . . Parts Scanalyzed . | . . . Part Schematics Acquired . | . . . Parts Damaged . | . . . Bothacking | -11 -10 -10 ------------ Run | Scr Mat Min Used RIF Installer . | . . . Robots Hacked . | . . . Non-combat . | . . . Combat . | . . . Robot Hacks Applied . | . . . Relay Couplers Released . | . . . Robots Rewired . | . . . Allies Hacked . | . . . Hacks Repelled . | . . . Allies | -11 -10 -10 -------- Run | Scr Mat Min Total Allies . | . . . Largest Group . | . . . Highest-Rated Group . | . . . Highest-Rated Ally . | . . . Total Orders . | . . . Ally Attacks . | . . . Total Damage . | . . . Kills . | . . . Allies Corrupted . | . . . Allies Melted . | . . . Intel | -11 -10 -10 ------- Run | Scr Mat Min Robot Analysis Total . | . . . Derelict Logs Recovered . | . . . Drone Launches . | . . . Drone Recoveries . | . . . Exploration | -11 -10 -10 ------------- Run | Scr Mat Min Turns Passed 820 | 9 565 246 Spaces Moved 472 | 7 341 124 Core . | . . . Treads . | . . . Legs 472 | 7 341 124 Wheels . | . . . Hover . | . . . Flight . | . . . Fastest Speed 120 | 120 120 150 Average Speed 143 | 120 141 150 Slowest Speed 180 | 120 150 180 Overloaded Moves . | . . . Propulsion Burnouts . | . . . Robots Hopped . | . . . Cave-ins Triggered . | . . . Exploration Rate (%) 24 | 2 55 17 Regions Visited 2 Branch Regions 1 Pre-discovered Areas . | . . . Known Exits Taken . | . . . Unknown Exits Taken 2 | 1 1 . Scrap Searched 1 | . . 1 Spaces Dug . | . . . Terrain Destroyed 28 | . 21 7 Melee . | . . . Projectile . | . . . AOE 28 | . 21 7 Terrain Rammed . | . . . Walls Destroyed . | . . . Machines Disabled . | . . . Actions | -11 -10 -10 --------- Run | Scr Mat Min Total 564 | 7 402 155 Wait 11 | . 11 . Move 470 | 6 340 124 Hop . | . . . Pick Up 13 | . 13 . Fast Attach 3 | . 3 . Attach 8 | . . 8 Detach . | . . . Swap 12 | 1 7 4 Drop 16 | . 13 3 Fire 31 | . 15 16 Melee . | . . . Ram . | . . . Kick . | . . . Crush . | . . . Escape Stasis . | . . . Rewire . | . . . Trap . | . . . Miscellaneous . | . . . Route ------- -11/Scrapyard -10/Materials (discovered 2 exits: [*Mat] / [*Min]) -10/Mines History --------- Turn | Location | Event 3 | -11/Scrapyard | Discovered new exit (range 3) 10 | -11/Scrapyard | Entered Materials 326 | -10/Materials | Discovered new exit (range 16) 335 | -10/Materials | Build established: Mutant 466 | -10/Materials | Discovered new exit (range 4) 575 | -10/Materials | Entered Mines 711 | -10/Mines | Assembled infested the area 716 | -10/Mines | Assisted by a Guerilla fighting off Assembled 779 | -10/Mines | Lost 7 parts (1p2n1u3w) 784 | -10/Mines | Core integrity fell below 50% 816 | -10/Mines | Core integrity fell below 20% 821 | -10/Mines | Destroyed by as-19778 with Assembled Blade Last Messages --------------- 00743_ The unstable cave ceiling collapses. 00743_ U-05 Engineer lays Concrete. 00744_ Destroyed Shock Absorption System. 00745_ U-05 Engineer lays Concrete. 00746_ U-05 Engineer destroyed. 00748_ The unstable cave ceiling collapses. 00748_ Beam Cannon destroyed. 00748_ Aluminum Leg destroyed. 00750_ The unstable cave ceiling collapses. 00750_ D-53 Grenadier destroyed. 00751_ The unstable cave ceiling collapses. 00761_ Acquired 20 matter. 00766_ The unstable cave ceiling collapses. 00781_ Grenade Launcher destroyed. 00788_ Ion Engine destroyed. 00789_ as-32244 destroyed. 00793_ The unstable cave ceiling collapses. 00801_ Aluminum Leg destroyed. 00807_ Beam Cannon destroyed. 00820_ R-06 Scavenger destroyed. Map ----- +----------------------------------------------------+ | ????????????????????????????????????????????? | | ????????????????????????????????????????????? | | ????????????????????????????????????????????? | | ????????????????????????????????????????????? | | ????????????????????????????????????????????? | | ????????????????????????????????????????????? | | ????????????????????????????????????????????? | | ????????????????????????????????????????????? | | ????????????????????????????????????????????? | | ????????????????????????????????????????????? | | ????????????????????????????????????????????? | | ????????????##??????????????????????????????? | | ???????????# #??????????????????????????????? | | ??????????# #??????????????????????????????? | | ????????## #??????????????????????????????? | | ????????# #???????????????????????????????? | | ?#??##### #???????????????????????????????? | | ?# ## #???????????????????????????????? | | ?# # # #????????????????????????????????? | | ?# # ##???????????????????????????????? | | ?# #???????????????????????????????? | | ?### # ###??????????????????????????????? | | ??# ## #??????????????????????????????? | | ??# ## ###########################????? | | ??## # # a a a!!! =! #????? | | ???# # @ %! [%= #????? | | ???# ####################### #????? | | ???# ##?????????????????????# #????? | | ???## ##??????????????????????# #????? | | ???# ##??????????????????????## #????? | | ???# ! ###??????????????????????## #????? | | ???# #???????????????????????## #????? | | ???## % #??????????????????###### #????? | | ????# #????## ??????????# #????? | | ????## #????# ####### ## # #????? | | ?????## ##???# ## ## ##???? | | ??????## #??? ## ## =% ##??? | | ???????? #??? ########### =%[ #??? | | ???????? #?????????????????????##### !* #??? | | ???????? ?????????????????????????#### ##??? | | ????????##????????????????????????????###???? | | ????????????????????????????????????????????? | | ????????????????????????????????????????????? | | ????????????????????????????????????????????? | | ????????????????????????????????????????????? | | ????????????????????????????????????????????? | | ????????????????????????????????????????????? | | ????????????????????????????????????????????? | | ????????????????????????????????????????????? | | ????????????????????????????????????????????? | +----------------------------------------------------+ Best States ------------- Heat Dissipation 39 Energy Generation 10 Energy Capacity 250 Matter Stores 300 Matter Capacity 300 Sight Range 16 Terrain Scan Density 10 Evasion (%) 40 Item Schematics ----------------- None Robot Schematics ------------------ None Fabricated ------------ Nothing Alien Tech Used ----------------- None Achievements -------------- None Challenges ------------ None Game ------ Seed MappingImprinterBuckler Manual? 0 Play Time 00:12:06 Cumulative 5.0 hours Start 2020.10.08 @ 17:12:13 End 2020.10.08 @ 17:21:30 Sessions 1 Manual Loads 0 Difficulty Rogue Special Mode None Game No. 10 Rogue 10 Adventurer 0 Explorer 0 Win Type - Total 0 Types 0/0/0/0/0/0/0/0/0 Lore% 4 Gallery% 11 Achievement% 10 Wizard Run 0 Options --------- ASCII 0 Keyboard 1 Movement Numpad Keybinds 0 Fullscreen 1 Font 18/SmallcapsGlow Map View 76x50 Tactical HUD 1 Map Filters NONE Filters NONE Steam 1 RUN: 7f50c024-31f5-44f8-b7d2-211b49683f80